[Event "Live Chess"]
[Site "Chess.com"]
[Date "2023.05.21"]
[Round "-"]
[White "manthanit"]
[Black "ChessClubLive"]
[Result "0-1"]
[WhiteElo "1081"]
[BlackElo "1660"]
[TimeControl "300"]
[EndTime "6:38:11 PDT"]
[Termination "ChessClubLive won by resignation"]

1. e4 {[%clk 0:04:55.3]} 1... c5 {[%clk 0:04:56.2]} 2. g3 {[%clk 0:04:53.8]}
2... e6 {[%clk 0:04:55.5]} 3. Bg2 {[%clk 0:04:53.5]} 3... Nf6 {[%clk 0:04:53.1]}
4. e5 {[%clk 0:04:51.7]} 4... Nd5 {[%clk 0:04:52.1]} 5. c4 {[%clk 0:04:47.9]}
5... Nb6 {[%clk 0:04:49.5]} 6. b3 {[%clk 0:04:44.9]} 6... Be7 {[%clk 0:04:46.7]}
7. Bb2 {[%clk 0:04:43.9]} 7... O-O {[%clk 0:04:44.5]} 8. d4 {[%clk 0:04:43.1]}
8... cxd4 {[%clk 0:04:42.9]} 9. Bxd4 {[%clk 0:04:40.8]} 9... Nc6 {[%clk
0:04:41.7]} 10. Nf3 {[%clk 0:04:39.8]} 10... Nxd4 {[%clk 0:04:40.4]} 11. Nxd4
{[%clk 0:04:39]} 11... Bc5 {[%clk 0:04:34.4]} 12. O-O {[%clk 0:04:30.2]} 12...
Qc7 {[%clk 0:04:24.8]} 13. Re1 {[%clk 0:04:17.8]} 13... f6 {[%clk 0:04:15.9]}
14. exf6 {[%clk 0:04:13]} 14... Rxf6 {[%clk 0:04:13.8]} 15. Re2 {[%clk
0:04:11.5]} 15... d5 {[%clk 0:04:06.1]} 16. cxd5 {[%clk 0:03:46.6]} 16... Nxd5
{[%clk 0:03:59.6]} 17. Bxd5 {[%clk 0:03:29.2]} 17... exd5 {[%clk 0:03:52.7]} 18.
Nc3 {[%clk 0:03:22.6]} 18... Bg4 {[%clk 0:03:47.7]} 19. f3 {[%clk 0:03:12.5]}
19... Bxf3 {[%clk 0:03:25.6]} 20. Nb5 {[%clk 0:02:38.4]} 20... Qb6 {[%clk
0:03:13.2]} 21. Rf2 {[%clk 0:01:15.5]} 21... Bxd1 {[%clk 0:03:01.3]} 22. Rxd1
{[%clk 0:01:14.2]} 22... Rxf2 {[%clk 0:02:53.7]} 23. Kxf2 {[%clk 0:01:13.5]}
23... Qxb5 {[%clk 0:02:53]} 24. Kg2 {[%clk 0:01:08.7]} 24... Bxd4 {[%clk
0:02:48.6]} 25. Rxd4 {[%clk 0:01:06.9]} 25... Qe2+ {[%clk 0:02:47]} 26. Kh3
{[%clk 0:01:05.6]} 26... Rf8 {[%clk 0:02:40.2]} 0-1

[Event "Live Chess"]
[Site "Chess.com"]
[Date "2023.05.21"]
[Round "-"]
[White "Nazar_777"]
[Black "Conradical12"]
[Result "1-0"]
[WhiteElo "1574"]
[BlackElo "1575"]
[TimeControl "300"]
[EndTime "6:38:21 PDT"]
[Termination "Nazar_777 won by resignation"]

1. e3 {[%clk 0:04:57.1]} 1... e5 {[%clk 0:04:56.6]} 2. h4 {[%clk 0:04:56.3]}
2... Nc6 {[%clk 0:04:53.5]} 3. a3 {[%clk 0:04:55.7]} 3... Bc5 {[%clk 0:04:51.2]}
4. c4 {[%clk 0:04:54.9]} 4... a5 {[%clk 0:04:48.9]} 5. Nc3 {[%clk 0:04:54.3]}
5... f5 {[%clk 0:04:46.6]} 6. Be2 {[%clk 0:04:53.7]} 6... Nf6 {[%clk 0:04:43.5]}
7. Qc2 {[%clk 0:04:53.1]} 7... d6 {[%clk 0:04:41.3]} 8. b3 {[%clk 0:04:52.1]}
8... O-O {[%clk 0:04:38.5]} 9. Nf3 {[%clk 0:04:51.6]} 9... h6 {[%clk 0:04:22.3]}
10. Bb2 {[%clk 0:04:50.4]} 10... Be6 {[%clk 0:04:03]} 11. Rc1 {[%clk 0:04:47.8]}
11... Qe7 {[%clk 0:03:58.5]} 12. Nd5 {[%clk 0:04:46]} 12... Nxd5 {[%clk
0:03:53.9]} 13. cxd5 {[%clk 0:04:44.7]} 13... Bxd5 {[%clk 0:03:52.4]} 14. Bc4
{[%clk 0:04:42.7]} 14... Bxc4 {[%clk 0:03:46.7]} 15. Qxc4+ {[%clk 0:04:41.1]}
15... Kh8 {[%clk 0:03:46.2]} 16. h5 {[%clk 0:04:39.1]} 16... e4 {[%clk
0:03:42.8]} 17. Nh4 {[%clk 0:04:37.8]} 17... f4 {[%clk 0:03:35.9]} 18. Ng6+
{[%clk 0:04:36]} 1-0

[Event "Live Chess"]
[Site "Chess.com"]
[Date "2023.05.21"]
[Round "-"]
[White "Alfiedog12"]
[Black "Brooms1989"]
[Result "0-1"]
[WhiteElo "905"]
[BlackElo "1165"]
[TimeControl "300"]
[EndTime "6:38:31 PDT"]
[Termination "Brooms1989 won by checkmate"]

1. d4 {[%clk 0:04:57.6]} 1... Nf6 {[%clk 0:04:58.1]} 2. Bf4 {[%clk 0:04:57.2]}
2... d5 {[%clk 0:04:51.5]} 3. Nf3 {[%clk 0:04:56.5]} 3... c5 {[%clk 0:04:50.6]}
4. c3 {[%clk 0:04:54.8]} 4... Nc6 {[%clk 0:04:49.4]} 5. Nbd2 {[%clk 0:04:54.3]}
5... Bf5 {[%clk 0:04:42.3]} 6. e3 {[%clk 0:04:53.3]} 6... e6 {[%clk 0:04:41.1]}
7. Bb5 {[%clk 0:04:51.9]} 7... a6 {[%clk 0:04:34.4]} 8. Ba4 {[%clk 0:04:49.7]}
8... Qb6 {[%clk 0:04:31.3]} 9. Bxc6+ {[%clk 0:04:41.8]} 9... bxc6 {[%clk
0:04:27.6]} 10. Qb3 {[%clk 0:04:40.1]} 10... Qxb3 {[%clk 0:04:26.1]} 11. axb3
{[%clk 0:04:39.1]} 11... cxd4 {[%clk 0:04:18.2]} 12. exd4 {[%clk 0:04:31.8]}
12... h6 {[%clk 0:04:02.8]} 13. Ne5 {[%clk 0:04:29.8]} 13... g5 {[%clk
0:03:58.1]} 14. Bg3 {[%clk 0:04:23.7]} 14... Bg7 {[%clk 0:03:28.8]} 15. Nxc6
{[%clk 0:04:22.1]} 15... O-O {[%clk 0:03:27.5]} 16. Nf3 {[%clk 0:04:04.8]} 16...
Ne4 {[%clk 0:03:23.6]} 17. Ne7+ {[%clk 0:03:58.3]} 17... Kh8 {[%clk 0:03:21.1]}
18. Nxf5 {[%clk 0:03:52.3]} 18... exf5 {[%clk 0:03:21]} 19. Be5 {[%clk
0:03:50.2]} 19... Rfe8 {[%clk 0:03:15.9]} 20. Bxg7+ {[%clk 0:03:44.5]} 20...
Kxg7 {[%clk 0:03:15.8]} 21. O-O {[%clk 0:03:24.2]} 21... f6 {[%clk 0:03:09.8]}
22. Rfe1 {[%clk 0:03:19.7]} 22... g4 {[%clk 0:03:07.8]} 23. Nh4 {[%clk 0:03:16]}
23... Kf7 {[%clk 0:02:52.8]} 24. Nxf5 {[%clk 0:03:14.3]} 24... Kg6 {[%clk
0:02:52.1]} 25. Ng3 {[%clk 0:03:07.9]} 25... h5 {[%clk 0:02:47.3]} 26. Nxe4
{[%clk 0:02:51.3]} 26... Rxe4 {[%clk 0:02:41.9]} 27. Rxe4 {[%clk 0:02:48.8]}
27... dxe4 {[%clk 0:02:41.8]} 28. Re1 {[%clk 0:02:46.2]} 28... f5 {[%clk
0:02:40]} 29. d5 {[%clk 0:02:43.8]} 29... Kf6 {[%clk 0:02:38.1]} 30. c4 {[%clk
0:02:42.2]} 30... Rb8 {[%clk 0:02:36.3]} 31. Re3 {[%clk 0:02:36.6]} 31... Ke5
{[%clk 0:02:30.7]} 32. Kf1 {[%clk 0:02:25.6]} 32... Kd4 {[%clk 0:02:23.2]} 33.
d6 {[%clk 0:02:16.4]} 33... Rd8 {[%clk 0:02:19.2]} 34. c5 {[%clk 0:02:04.4]}
34... Kxc5 {[%clk 0:02:18]} 35. d7 {[%clk 0:01:58.1]} 35... Rxd7 {[%clk
0:02:16.8]} 36. Rc3+ {[%clk 0:01:56.6]} 36... Kb4 {[%clk 0:02:15.2]} 37. Ke2
{[%clk 0:01:51.5]} 37... Rd4 {[%clk 0:02:00.9]} 38. Ke3 {[%clk 0:01:44.3]} 38...
Rd3+ {[%clk 0:01:54.5]} 39. Rxd3 {[%clk 0:01:42.6]} 39... exd3 {[%clk 0:01:54]}
40. Kxd3 {[%clk 0:01:41.8]} 40... Kxb3 {[%clk 0:01:53.9]} 41. g3 {[%clk
0:01:36.9]} 41... a5 {[%clk 0:01:52.9]} 42. Kd4 {[%clk 0:01:29.4]} 42... a4
{[%clk 0:01:51]} 43. Ke5 {[%clk 0:01:24.8]} 43... Kxb2 {[%clk 0:01:47.5]} 44.
Kxf5 {[%clk 0:01:24.3]} 44... a3 {[%clk 0:01:47.1]} 45. Kg5 {[%clk 0:01:23.7]}
45... a2 {[%clk 0:01:46.8]} 46. Kxh5 {[%clk 0:01:23]} 46... a1=Q {[%clk
0:01:46.7]} 47. Kxg4 {[%clk 0:01:22.3]} 47... Kc2 {[%clk 0:01:45.2]} 48. f3
{[%clk 0:01:20.2]} 48... Qg7+ {[%clk 0:01:43.5]} 49. Kh3 {[%clk 0:01:18.2]}
49... Kd2 {[%clk 0:01:41.3]} 50. Kg2 {[%clk 0:01:17.2]} 50... Ke2 {[%clk
0:01:37.1]} 51. h4 {[%clk 0:01:14.9]} 51... Qd4 {[%clk 0:01:34.3]} 52. f4 {[%clk
0:01:09.8]} 52... Qf2+ {[%clk 0:01:32.7]} 53. Kh3 {[%clk 0:01:08.5]} 53... Kf3
{[%clk 0:01:27.9]} 54. h5 {[%clk 0:01:06.2]} 54... Qxg3# {[%clk 0:01:27.1]} 0-1

[Event "Live Chess"]
[Site "Chess.com"]
[Date "2023.05.21"]
[Round "-"]
[White "garyjc"]
[Black "Ferrarifan27"]
[Result "0-1"]
[WhiteElo "1035"]
[BlackElo "2070"]
[TimeControl "300"]
[EndTime "6:38:42 PDT"]
[Termination "Ferrarifan27 won by checkmate"]

1. e4 {[%clk 0:04:57.4]} 1... e5 {[%clk 0:04:58.5]} 2. Nf3 {[%clk 0:04:56]} 2...
Nc6 {[%clk 0:04:57]} 3. d4 {[%clk 0:04:54.3]} 3... exd4 {[%clk 0:04:55.8]} 4.
Nxd4 {[%clk 0:04:53.3]} 4... Qh4 {[%clk 0:04:54.8]} 5. Nxc6 {[%clk 0:04:37.4]}
5... Qxe4+ {[%clk 0:04:51.8]} 6. Be2 {[%clk 0:04:35.4]} 6... Qxc6 {[%clk
0:04:49.6]} 7. O-O {[%clk 0:04:34.1]} 7... d5 {[%clk 0:04:40.7]} 8. Re1 {[%clk
0:04:33.1]} 8... Be6 {[%clk 0:04:39.4]} 9. Nc3 {[%clk 0:04:28.2]} 9... O-O-O
{[%clk 0:04:35.9]} 10. Bd2 {[%clk 0:04:17.3]} 10... Nf6 {[%clk 0:04:31.7]} 11.
Nb5 {[%clk 0:04:12.4]} 11... Kb8 {[%clk 0:04:27.4]} 12. Be3 {[%clk 0:04:03.6]}
12... a6 {[%clk 0:04:17.9]} 13. Nd4 {[%clk 0:03:59.3]} 13... Qd6 {[%clk
0:04:15.8]} 14. a4 {[%clk 0:03:43.7]} 14... Be7 {[%clk 0:03:49.9]} 15. Qd2
{[%clk 0:03:31.6]} 15... Rhe8 {[%clk 0:03:45.3]} 16. Bxa6 {[%clk 0:03:17.4]}
16... Qxa6 {[%clk 0:03:41.2]} 17. Nb5 {[%clk 0:02:53.2]} 17... Ne4 {[%clk
0:03:37.4]} 18. Qe2 {[%clk 0:02:45.6]} 18... Bc5 {[%clk 0:03:30.4]} 19. Bxc5
{[%clk 0:02:39.1]} 19... Nxc5 {[%clk 0:03:28.2]} 20. Qe5 {[%clk 0:02:27.3]}
20... Qc6 {[%clk 0:03:01.2]} 21. Qxg7 {[%clk 0:02:15.5]} 21... Rg8 {[%clk
0:02:59.2]} 22. Qxh7 {[%clk 0:02:04.3]} 22... d4 {[%clk 0:02:57.8]} 23. h3
{[%clk 0:01:34.5]} 23... Qxg2# {[%clk 0:02:54.3]} 0-1

[Event "Live Chess"]
[Site "Chess.com"]
[Date "2023.05.21"]
[Round "-"]
[White "Ed_Knox"]
[Black "TheSmoulderingMaster"]
[Result "0-1"]
[WhiteElo "1446"]
[BlackElo "1666"]
[TimeControl "300"]
[EndTime "6:38:45 PDT"]
[Termination "TheSmoulderingMaster won by checkmate"]

1. e4 {[%clk 0:04:57]} 1... c5 {[%clk 0:04:58.8]} 2. c3 {[%clk 0:04:53.2]} 2...
d5 {[%clk 0:04:57.2]} 3. exd5 {[%clk 0:04:50.9]} 3... Qxd5 {[%clk 0:04:56.1]} 4.
Qf3 {[%clk 0:04:46.4]} 4... Nf6 {[%clk 0:04:53.7]} 5. Na3 {[%clk 0:04:35.2]}
5... Nc6 {[%clk 0:04:50.5]} 6. Bc4 {[%clk 0:04:33.3]} 6... Qxf3 {[%clk
0:04:45.4]} 7. Nxf3 {[%clk 0:04:31.8]} 7... a6 {[%clk 0:04:44.9]} 8. O-O {[%clk
0:04:07.1]} 8... Bg4 {[%clk 0:04:43.5]} 9. Be2 {[%clk 0:04:05.3]} 9... h6 {[%clk
0:04:40.2]} 10. Nc4 {[%clk 0:04:03.1]} 10... b5 {[%clk 0:04:36.9]} 11. Ne3
{[%clk 0:03:57.4]} 11... Bxf3 {[%clk 0:04:34.3]} 12. Bxf3 {[%clk 0:03:55.5]}
12... Rc8 {[%clk 0:04:31.7]} 13. Re1 {[%clk 0:03:35.7]} 13... e6 {[%clk
0:04:30.1]} 14. d3 {[%clk 0:03:24]} 14... Be7 {[%clk 0:04:27.2]} 15. Ng4 {[%clk
0:03:21.2]} 15... O-O {[%clk 0:04:24]} 16. Nxf6+ {[%clk 0:03:19.7]} 16... Bxf6
{[%clk 0:04:23.3]} 17. Be3 {[%clk 0:03:14.9]} 17... c4 {[%clk 0:04:21.4]} 18.
dxc4 {[%clk 0:03:12]} 18... bxc4 {[%clk 0:04:20]} 19. Rad1 {[%clk 0:03:10]}
19... Ne5 {[%clk 0:04:17.6]} 20. Bb7 {[%clk 0:03:00.2]} 20... Rb8 {[%clk
0:04:16]} 21. Bxa6 {[%clk 0:02:42.8]} 21... Rxb2 {[%clk 0:04:13.7]} 22. a4
{[%clk 0:02:38.2]} 22... Nd3 {[%clk 0:04:10.2]} 23. Rf1 {[%clk 0:02:28.7]} 23...
Bxc3 {[%clk 0:04:00.9]} 24. Bxc4 {[%clk 0:02:27.3]} 24... Ne5 {[%clk 0:03:58.8]}
25. Bb5 {[%clk 0:02:16.6]} 25... Ra8 {[%clk 0:03:51.2]} 26. Bd4 {[%clk
0:02:04.3]} 26... Bxd4 {[%clk 0:03:48.8]} 27. Rxd4 {[%clk 0:02:01.9]} 27... Ra2
{[%clk 0:03:40.4]} 28. h3 {[%clk 0:02:00]} 28... Ra7 {[%clk 0:03:28.6]} 29. Re1
{[%clk 0:01:53.6]} 29... Ng6 {[%clk 0:03:06.1]} 30. Red1 {[%clk 0:01:37.1]}
30... Kh7 {[%clk 0:03:04.2]} 31. Rd7 {[%clk 0:01:29.8]} 31... Rxd7 {[%clk
0:03:00.9]} 32. Rxd7 {[%clk 0:01:28.5]} 32... Nf4 {[%clk 0:02:57.1]} 33. Ra7
{[%clk 0:01:18]} 33... f6 {[%clk 0:02:55.3]} 34. a5 {[%clk 0:01:16.4]} 34... e5
{[%clk 0:02:54.1]} 35. a6 {[%clk 0:01:15.4]} 35... Nd5 {[%clk 0:02:53.1]} 36.
Bc4 {[%clk 0:01:03.7]} 36... Ra1+ {[%clk 0:02:51.4]} 37. Kh2 {[%clk 0:01:02.1]}
37... Nb6 {[%clk 0:02:50.4]} 38. Bd5 {[%clk 0:00:56.2]} 38... Nxd5 {[%clk
0:02:45.4]} 39. Rd7 {[%clk 0:00:52.7]} 39... Nb6 {[%clk 0:02:40.9]} 40. a7
{[%clk 0:00:46.5]} 40... Nxd7 {[%clk 0:02:38.1]} 41. a8=Q {[%clk 0:00:42.4]}
41... Rxa8 {[%clk 0:02:35.9]} 42. f4 {[%clk 0:00:41.6]} 42... exf4 {[%clk
0:02:33.8]} 43. g4 {[%clk 0:00:41]} 43... Ra2+ {[%clk 0:02:30.8]} 44. Kg1 {[%clk
0:00:39]} 44... Ne5 {[%clk 0:02:26.4]} 45. Kf1 {[%clk 0:00:38.2]} 45... f3
{[%clk 0:02:25.8]} 46. g5 {[%clk 0:00:37.3]} 46... Nd3 {[%clk 0:02:23.2]} 47. h4
{[%clk 0:00:36.4]} 47... Ra1# {[%clk 0:02:21.8]} 0-1

[Event "Live Chess"]
[Site "Chess.com"]
[Date "2023.05.21"]
[Round "-"]
[White "seabuck"]
[Black "domrobson"]
[Result "1/2-1/2"]
[WhiteElo "1878"]
[BlackElo "1761"]
[TimeControl "300"]
[EndTime "6:38:46 PDT"]
[Termination "Game drawn - insufficient material"]

1. d4 {[%clk 0:04:57.8]} 1... Nf6 {[%clk 0:04:58.3]} 2. c4 {[%clk 0:04:56.7]}
2... e6 {[%clk 0:04:57.9]} 3. Nc3 {[%clk 0:04:55.8]} 3... d5 {[%clk 0:04:57.5]}
4. Nf3 {[%clk 0:04:53.6]} 4... c6 {[%clk 0:04:57]} 5. e3 {[%clk 0:04:48.1]} 5...
Nbd7 {[%clk 0:04:56.3]} 6. Bd3 {[%clk 0:04:46.2]} 6... dxc4 {[%clk 0:04:55.7]}
7. Bxc4 {[%clk 0:04:44.9]} 7... Bd6 {[%clk 0:04:53.8]} 8. O-O {[%clk 0:04:41.7]}
8... O-O {[%clk 0:04:52.3]} 9. Re1 {[%clk 0:04:38.8]} 9... b5 {[%clk 0:04:51]}
10. Bd3 {[%clk 0:04:36.9]} 10... Qc7 {[%clk 0:04:50]} 11. e4 {[%clk 0:04:32.8]}
11... e5 {[%clk 0:04:47.9]} 12. d5 {[%clk 0:04:21.9]} 12... b4 {[%clk 0:04:46]}
13. dxc6 {[%clk 0:04:15.1]} 13... bxc3 {[%clk 0:04:44.4]} 14. cxd7 {[%clk
0:04:13.9]} 14... cxb2 {[%clk 0:04:43]} 15. Bxb2 {[%clk 0:04:06.3]} 15... Bxd7
{[%clk 0:04:39.4]} 16. Rc1 {[%clk 0:04:01.7]} 16... Qb8 {[%clk 0:04:38]} 17. Bc3
{[%clk 0:03:44.2]} 17... Bg4 {[%clk 0:04:32.1]} 18. h3 {[%clk 0:03:39.4]} 18...
Bh5 {[%clk 0:04:30.2]} 19. g4 {[%clk 0:03:31.4]} 19... Bg6 {[%clk 0:04:28.8]}
20. Qb3 {[%clk 0:03:29]} 20... Qxb3 {[%clk 0:04:25]} 21. axb3 {[%clk 0:03:27.6]}
21... Rab8 {[%clk 0:04:18.2]} 22. Bc4 {[%clk 0:03:18.3]} 22... Nxe4 {[%clk
0:04:09]} 23. Bxe5 {[%clk 0:03:15]} 23... Bxe5 {[%clk 0:04:05.1]} 24. Nxe5
{[%clk 0:03:13.4]} 24... Nd2 {[%clk 0:03:59.6]} 25. Re3 {[%clk 0:02:55.8]} 25...
Nxc4 {[%clk 0:03:54.7]} 26. bxc4 {[%clk 0:02:50.2]} 26... Rfc8 {[%clk
0:03:50.5]} 27. Nxg6 {[%clk 0:02:40.6]} 27... hxg6 {[%clk 0:03:48.4]} 28. Re7
{[%clk 0:02:38.8]} 28... Rb4 {[%clk 0:03:45.4]} 29. c5 {[%clk 0:02:33.2]} 29...
Rc6 {[%clk 0:03:44]} 30. Rxa7 {[%clk 0:02:28.6]} 30... Rb5 {[%clk 0:03:43.3]}
31. Rd1 {[%clk 0:02:18.7]} 31... Rbxc5 {[%clk 0:03:40.7]} 32. Rd8+ {[%clk
0:02:17.3]} 32... Kh7 {[%clk 0:03:39.7]} 33. Rxf7 {[%clk 0:02:16]} 33... Rf6
{[%clk 0:03:37.7]} 34. Rdd7 {[%clk 0:02:10.5]} 34... Rxf7 {[%clk 0:03:35.2]} 35.
Rxf7 {[%clk 0:02:09.2]} 35... Rc3 {[%clk 0:03:31.7]} 36. Kg2 {[%clk 0:02:07.7]}
36... Kg8 {[%clk 0:03:30.3]} 37. Ra7 {[%clk 0:02:05.7]} 37... Rc6 {[%clk
0:03:26.2]} 38. h4 {[%clk 0:02:03.6]} 38... Kh7 {[%clk 0:03:24.9]} 39. Kg3
{[%clk 0:02:02]} 39... Rb6 {[%clk 0:03:22.5]} 40. f3 {[%clk 0:02:00.4]} 40...
Rc6 {[%clk 0:03:21.5]} 41. Ra4 {[%clk 0:01:52]} 41... Kh6 {[%clk 0:03:18.3]} 42.
g5+ {[%clk 0:01:48.1]} 42... Kh7 {[%clk 0:03:16.5]} 43. Kg4 {[%clk 0:01:46.7]}
43... Rb6 {[%clk 0:03:15.6]} 44. h5 {[%clk 0:01:41]} 44... gxh5+ {[%clk
0:03:13.9]} 45. Kxh5 {[%clk 0:01:40]} 45... Rc6 {[%clk 0:03:10.7]} 46. f4 {[%clk
0:01:34]} 46... g6+ {[%clk 0:03:09.2]} 47. Kg4 {[%clk 0:01:32.6]} 47... Rc7
{[%clk 0:03:08.4]} 48. Ra6 {[%clk 0:01:30.1]} 48... Kg7 {[%clk 0:03:05.3]} 49.
Ra4 {[%clk 0:01:27.1]} 49... Rb7 {[%clk 0:03:04.1]} 50. f5 {[%clk 0:01:25.2]}
50... gxf5+ {[%clk 0:03:02.8]} 51. Kxf5 {[%clk 0:01:24.4]} 51... Rb5+ {[%clk
0:03:02.1]} 52. Kg4 {[%clk 0:01:23.5]} 52... Rb7 {[%clk 0:03:01.8]} 53. Kh5
{[%clk 0:01:22]} 53... Rc7 {[%clk 0:03:01.1]} 54. Rf4 {[%clk 0:01:19.6]} 54...
Rb7 {[%clk 0:03:00.2]} 55. Rf5 {[%clk 0:01:16]} 55... Rc7 {[%clk 0:02:59.1]} 56.
g6 {[%clk 0:01:12.8]} 56... Ra7 {[%clk 0:02:58.1]} 57. Kg5 {[%clk 0:01:11.1]}
57... Rb7 {[%clk 0:02:57.3]} 58. Rd5 {[%clk 0:01:10.1]} 58... Ra7 {[%clk
0:02:56.5]} 59. Rf5 {[%clk 0:01:08.1]} 59... Rb7 {[%clk 0:02:55.9]} 60. Rf7+
{[%clk 0:01:05.6]} 60... Rxf7 {[%clk 0:02:54.9]} 61. gxf7 {[%clk 0:01:04.5]}
61... Kxf7 {[%clk 0:02:54.8]} 1/2-1/2

[Event "Live Chess"]
[Site "Chess.com"]
[Date "2023.05.21"]
[Round "-"]
[White "stevochess11"]
[Black "Doge_Dandolo"]
[Result "0-1"]
[WhiteElo "1697"]
[BlackElo "1905"]
[TimeControl "300"]
[EndTime "6:38:47 PDT"]
[Termination "Doge_Dandolo won by resignation"]

1. e4 {[%clk 0:04:57.5]} 1... c6 {[%clk 0:04:57.2]} 2. Ne2 {[%clk 0:04:55.4]}
2... d5 {[%clk 0:04:55.8]} 3. e5 {[%clk 0:04:54.1]} 3... Bf5 {[%clk 0:04:53.3]}
4. d3 {[%clk 0:04:49.8]} 4... e6 {[%clk 0:04:52.4]} 5. h3 {[%clk 0:04:47.2]}
5... h5 {[%clk 0:04:51]} 6. f4 {[%clk 0:04:45.4]} 6... c5 {[%clk 0:04:46.1]} 7.
g3 {[%clk 0:04:38.9]} 7... Nc6 {[%clk 0:04:43.1]} 8. Bg2 {[%clk 0:04:37.9]} 8...
Qb6 {[%clk 0:04:36.2]} 9. c3 {[%clk 0:04:33.5]} 9... Nge7 {[%clk 0:04:31.5]} 10.
Na3 {[%clk 0:04:30.8]} 10... a6 {[%clk 0:04:09]} 11. O-O {[%clk 0:04:19.1]}
11... Ng8 {[%clk 0:03:49.7]} 12. d4 {[%clk 0:04:10.2]} 12... Nh6 {[%clk
0:03:47.1]} 13. Be3 {[%clk 0:04:05.2]} 13... cxd4 {[%clk 0:03:41.7]} 14. cxd4
{[%clk 0:04:03.2]} 14... Qxb2 {[%clk 0:03:38]} 15. Qb1 {[%clk 0:03:27.5]} 15...
Bxb1 {[%clk 0:03:35.4]} 0-1

[Event "Live Chess"]
[Site "Chess.com"]
[Date "2023.05.21"]
[Round "-"]
[White "elephantgerrald"]
[Black "OleksiyJr1"]
[Result "0-1"]
[WhiteElo "677"]
[BlackElo "1004"]
[TimeControl "300"]
[EndTime "6:38:51 PDT"]
[Termination "OleksiyJr1 won - game abandoned"]

1. d4 {[%clk 0:04:58.4]} 1... Nf6 {[%clk 0:04:53]} 2. c3 {[%clk 0:04:55.1]} 2...
c6 {[%clk 0:04:52.4]} 3. Bg5 {[%clk 0:04:52.9]} 3... d5 {[%clk 0:04:52.3]} 4.
Bxf6 {[%clk 0:04:51.5]} 4... exf6 {[%clk 0:04:52.2]} 5. Nf3 {[%clk 0:04:50.2]}
5... Nd7 {[%clk 0:04:52]} 6. g3 {[%clk 0:04:48.2]} 6... Nb6 {[%clk 0:04:51.9]}
7. Bg2 {[%clk 0:04:46.8]} 7... Bg4 {[%clk 0:04:50.2]} 8. O-O {[%clk 0:04:45]}
8... Bd6 {[%clk 0:04:40.7]} 9. h3 {[%clk 0:04:44.4]} 9... Be6 {[%clk 0:04:31.5]}
10. Nbd2 {[%clk 0:04:41.1]} 10... O-O {[%clk 0:04:30.6]} 11. b4 {[%clk
0:04:27.9]} 11... a5 {[%clk 0:04:16.1]} 12. bxa5 {[%clk 0:04:21.6]} 12... Rxa5
{[%clk 0:04:16]} 13. Qc2 {[%clk 0:04:08.6]} 13... Nc4 {[%clk 0:04:10.4]} 14.
Nxc4 {[%clk 0:04:07]} 14... dxc4 {[%clk 0:04:10.3]} 15. Rab1 {[%clk 0:03:56.9]}
15... b5 {[%clk 0:04:01]} 16. e4 {[%clk 0:03:45.6]} 16... g6 {[%clk 0:03:56.9]}
17. Rfe1 {[%clk 0:03:44.1]} 17... f5 {[%clk 0:03:56]} 18. e5 {[%clk 0:03:42.8]}
18... Bc7 {[%clk 0:03:52.8]} 19. Qe2 {[%clk 0:03:31.6]} 19... Qb8 {[%clk
0:03:40]} 0-1

[Event "Live Chess"]
[Site "Chess.com"]
[Date "2023.05.21"]
[Round "-"]
[White "Long1968"]
[Black "hturner40"]
[Result "0-1"]
[WhiteElo "958"]
[BlackElo "1775"]
[TimeControl "300"]
[EndTime "6:39:08 PDT"]
[Termination "hturner40 won on time"]

1. e4 {[%clk 0:04:56.9]} 1... Nc6 {[%clk 0:04:57.8]} 2. d4 {[%clk 0:04:54.4]}
2... e5 {[%clk 0:04:54.4]} 3. d5 {[%clk 0:04:49.7]} 3... Nce7 {[%clk 0:04:53.2]}
4. Nc3 {[%clk 0:04:45.9]} 4... Ng6 {[%clk 0:04:51.7]} 5. Bc4 {[%clk 0:04:35.8]}
5... Nf6 {[%clk 0:04:40.5]} 6. Nf3 {[%clk 0:04:32.4]} 6... a6 {[%clk 0:04:33.8]}
7. O-O {[%clk 0:04:22.5]} 7... Bc5 {[%clk 0:04:28]} 8. a3 {[%clk 0:04:12]} 8...
d6 {[%clk 0:04:14.4]} 9. b4 {[%clk 0:04:06.2]} 9... Ba7 {[%clk 0:04:12.2]} 10.
Bg5 {[%clk 0:03:49.7]} 10... h6 {[%clk 0:04:01.7]} 11. Bxf6 {[%clk 0:03:40.1]}
11... Qxf6 {[%clk 0:03:59.7]} 12. h3 {[%clk 0:03:28]} 12... Nf4 {[%clk
0:03:53.5]} 13. g4 {[%clk 0:02:51.4]} 13... Nxh3+ {[%clk 0:03:48.6]} 14. Kg2
{[%clk 0:02:40.6]} 14... Bxg4 {[%clk 0:03:45.4]} 15. Be2 {[%clk 0:02:27.8]}
15... Nf4+ {[%clk 0:03:40.9]} 16. Kg3 {[%clk 0:02:18.6]} 16... Qg6 {[%clk
0:03:29.6]} 17. Nh4 {[%clk 0:01:57.2]} 17... Nh5+ {[%clk 0:03:02.7]} 18. Kh2
{[%clk 0:01:43.2]} 18... Qg5 {[%clk 0:03:00.3]} 19. Bxg4 {[%clk 0:01:21.5]}
19... Qxh4+ {[%clk 0:02:58.6]} 20. Bh3 {[%clk 0:00:31.1]} 20... Nf4 {[%clk
0:02:54.4]} 21. Qf3 {[%clk 0:00:26.2]} 21... O-O {[%clk 0:02:33.9]} 22. Qg3
{[%clk 0:00:15.4]} 22... Qxh3+ {[%clk 0:02:17.5]} 23. Qxh3 {[%clk 0:00:11.7]}
23... Nxh3 {[%clk 0:02:16.5]} 24. Kxh3 {[%clk 0:00:09.8]} 24... f5 {[%clk
0:02:15.6]} 25. f3 {[%clk 0:00:00.4]} 25... Bd4 {[%clk 0:02:13.3]} 0-1

[Event "Live Chess"]
[Site "Chess.com"]
[Date "2023.05.21"]
[Round "-"]
[White "JoeRoot66"]
[Black "gmnorfolk"]
[Result "0-1"]
[WhiteElo "1896"]
[BlackElo "2145"]
[TimeControl "300"]
[EndTime "6:39:10 PDT"]
[Termination "gmnorfolk won by resignation"]

1. e4 {[%clk 0:04:58.1]} 1... c5 {[%clk 0:04:57.9]} 2. c3 {[%clk 0:04:56.9]}
2... d5 {[%clk 0:04:55.6]} 3. exd5 {[%clk 0:04:56.8]} 3... Nf6 {[%clk
0:04:53.3]} 4. c4 {[%clk 0:04:54.7]} 4... e6 {[%clk 0:04:49.9]} 5. Nc3 {[%clk
0:04:54.1]} 5... exd5 {[%clk 0:04:46.7]} 6. cxd5 {[%clk 0:04:52.6]} 6... Bd6
{[%clk 0:04:45.4]} 7. Nf3 {[%clk 0:04:50.8]} 7... O-O {[%clk 0:04:44.5]} 8. Be2
{[%clk 0:04:47.8]} 8... Nbd7 {[%clk 0:04:43.9]} 9. O-O {[%clk 0:04:47.4]} 9...
Nb6 {[%clk 0:04:43.4]} 10. Re1 {[%clk 0:04:44.5]} 10... Nbxd5 {[%clk 0:04:42.5]}
11. Bc4 {[%clk 0:04:40]} 11... Nf4 {[%clk 0:04:32.4]} 12. d3 {[%clk 0:04:33.2]}
12... Bg4 {[%clk 0:04:29.4]} 13. h3 {[%clk 0:04:25]} 13... Bh5 {[%clk
0:04:25.5]} 14. Ne4 {[%clk 0:04:02.7]} 14... Nxe4 {[%clk 0:04:22.1]} 15. Rxe4
{[%clk 0:03:57.1]} 15... Ne6 {[%clk 0:04:19.3]} 16. Bxe6 {[%clk 0:03:31.2]}
16... fxe6 {[%clk 0:04:17]} 17. g4 {[%clk 0:03:17]} 17... Bg6 {[%clk 0:04:15.4]}
18. Rxe6 {[%clk 0:02:56.8]} 18... Bxd3 {[%clk 0:04:13.4]} 19. Bg5 {[%clk
0:02:33.3]} 19... Qd7 {[%clk 0:04:07.5]} 20. Re3 {[%clk 0:02:25.4]} 20... c4
{[%clk 0:04:04.8]} 21. Qe1 {[%clk 0:01:52.9]} 21... Bc5 {[%clk 0:04:00]} 22. Ne5
{[%clk 0:01:43.8]} 22... Qd5 {[%clk 0:03:56.7]} 23. Nxd3 {[%clk 0:01:37.4]}
23... Bxe3 {[%clk 0:03:47.3]} 24. Nb4 {[%clk 0:01:36]} 24... Qxg5 {[%clk
0:03:42.2]} 25. Qxe3 {[%clk 0:01:32.6]} 25... Qxe3 {[%clk 0:03:39.7]} 26. fxe3
{[%clk 0:01:32.5]} 26... Rad8 {[%clk 0:03:36.1]} 27. a4 {[%clk 0:01:16.7]} 27...
Rd2 {[%clk 0:03:33.2]} 0-1